[Event "*** Titled Tuesday Blitz"]
[Site "Chess.com"]
[Date "2021.04.27"]
[Round "10"]
[White "Bigfish1995"]
[Black "tapu2"]
[Result "1-0"]
[WhiteElo "2987"]
[BlackElo "2727"]
[TimeControl "180+1"]
[EndTime "11:51:36 PDT"]
[Termination "Bigfish1995 won by resignation"]

1. d4 {[%clk 0:03:00.9]} 1... Nf6 {[%clk 0:02:59.4]} 2. c4 {[%clk 0:03:01]} 2...
e6 {[%clk 0:02:58.9]} 3. Nf3 {[%clk 0:03:00.6]} 3... d5 {[%clk 0:02:58.7]} 4. g3
{[%clk 0:03:00.8]} 4... Bb4+ {[%clk 0:02:58.1]} 5. Bd2 {[%clk 0:03:00.4]} 5...
a5 {[%clk 0:02:58.2]} 6. Qc2 {[%clk 0:02:59.9]} 6... O-O {[%clk 0:02:57.5]} 7.
Bg2 {[%clk 0:03:00.2]} 7... c5 {[%clk 0:02:56.5]} 8. O-O {[%clk 0:02:56.9]} 8...
cxd4 {[%clk 0:02:51.6]} 9. Nxd4 {[%clk 0:02:56.7]} 9... Nc6 {[%clk 0:02:45.7]}
10. Nb5 {[%clk 0:02:37.3]} 10... d4 {[%clk 0:02:35.6]} 11. Rd1 {[%clk
0:02:34.4]} 11... Bc5 {[%clk 0:02:32]} 12. Bg5 {[%clk 0:02:28.1]} 12... h6
{[%clk 0:02:32]} 13. Bxf6 {[%clk 0:02:00.2]} 13... Qxf6 {[%clk 0:02:32.9]} 14.
Nd2 {[%clk 0:02:00.5]} 14... e5 {[%clk 0:02:32.8]} 15. Ne4 {[%clk 0:01:59.3]}
15... Qe7 {[%clk 0:02:32.9]} 16. Nxc5 {[%clk 0:01:40]} 16... Qxc5 {[%clk
0:02:33.8]} 17. a3 {[%clk 0:01:40.3]} 17... Be6 {[%clk 0:02:28.4]} 18. Nc7
{[%clk 0:01:40]} 18... Qxc4 {[%clk 0:02:00.1]} 19. Qxc4 {[%clk 0:01:39.9]} 19...
Bxc4 {[%clk 0:02:01]} 20. Nxa8 {[%clk 0:01:40.5]} 20... Rxa8 {[%clk 0:02:01]}
21. e3 {[%clk 0:01:36.1]} 21... Rd8 {[%clk 0:01:54.9]} 22. Rac1 {[%clk
0:01:36.2]} 22... Be2 {[%clk 0:01:49.7]} 23. Rd2 {[%clk 0:01:35.9]} 23... d3
{[%clk 0:01:49.8]} 24. Rc3 {[%clk 0:01:19.8]} 24... f5 {[%clk 0:01:43.9]} 25.
Rc5 {[%clk 0:01:07.4]} 25... Re8 {[%clk 0:01:35.1]} 26. f4 {[%clk 0:00:49.7]}
26... exf4 {[%clk 0:01:24.7]} 27. exf4 {[%clk 0:00:49.8]} 27... Nd4 {[%clk
0:01:25.1]} 28. Kf2 {[%clk 0:00:49.4]} 28... Nb3 {[%clk 0:01:24.5]} 29. Bd5+
{[%clk 0:00:49.4]} 1-0

[Event "*** Titled Tuesday Blitz"]
[Site "Chess.com"]
[Date "2021.04.27"]
[Round "10"]
[White "AsaHoffmann"]
[Black "Witik"]
[Result "0-1"]
[WhiteElo "2366"]
[BlackElo "2669"]
[TimeControl "180+1"]
[EndTime "11:51:36 PDT"]
[Termination "Witik won by resignation"]

1. d4 {[%clk 0:02:51.2]} 1... d6 {[%clk 0:02:57]} 2. e4 {[%clk 0:02:50.7]} 2...
c6 {[%clk 0:02:57.2]} 3. Be3 {[%clk 0:02:48]} 3... h6 {[%clk 0:02:54.4]} 4. f4
{[%clk 0:02:47.5]} 4... Nd7 {[%clk 0:02:53.9]} 5. Nf3 {[%clk 0:02:47.2]} 5...
Qc7 {[%clk 0:02:29.2]} 6. Nc3 {[%clk 0:02:46.4]} 6... e5 {[%clk 0:02:27.9]} 7.
Qd2 {[%clk 0:02:43.6]} 7... Ngf6 {[%clk 0:02:27.7]} 8. h3 {[%clk 0:02:42.1]}
8... Be7 {[%clk 0:02:23.3]} 9. O-O-O {[%clk 0:02:41]} 9... b5 {[%clk 0:01:39.1]}
10. a3 {[%clk 0:02:40.1]} 10... Bb7 {[%clk 0:01:33.5]} 11. fxe5 {[%clk
0:02:34.4]} 11... dxe5 {[%clk 0:01:33.4]} 12. d5 {[%clk 0:02:34.4]} 12... b4
{[%clk 0:01:22.3]} 13. dxc6 {[%clk 0:02:19.7]} 13... Bxc6 {[%clk 0:01:19]} 14.
axb4 {[%clk 0:02:02.1]} 14... Bxb4 {[%clk 0:01:18.5]} 15. Qd3 {[%clk 0:01:48.3]}
15... Qa5 {[%clk 0:01:08.5]} 16. Qc4 {[%clk 0:01:33.1]} 16... Bxc3 {[%clk
0:00:40]} 17. Qxc3 {[%clk 0:01:25]} 17... Qa1+ {[%clk 0:00:37.7]} 18. Kd2 {[%clk
0:01:24.5]} 18... Nxe4+ {[%clk 0:00:37.4]} 19. Ke2 {[%clk 0:01:20.6]} 19...
Nxc3+ {[%clk 0:00:36.8]} 20. bxc3 {[%clk 0:01:17.2]} 20... Qxc3 {[%clk
0:00:34.8]} 0-1

[Event "*** Titled Tuesday Blitz"]
[Site "Chess.com"]
[Date "2021.04.27"]
[Round "10"]
[White "shreyansshah123"]
[Black "catzapto"]
[Result "0-1"]
[WhiteElo "1696"]
[BlackElo "2091"]
[TimeControl "180+1"]
[EndTime "11:51:36 PDT"]
[Termination "catzapto won by resignation"]

1. e4 {[%clk 0:03:00.9]} 1... c5 {[%clk 0:02:58.2]} 2. Nf3 {[%clk 0:03:01.3]}
2... e6 {[%clk 0:02:57]} 3. d4 {[%clk 0:03:00.3]} 3... cxd4 {[%clk 0:02:57.9]}
4. Nxd4 {[%clk 0:03:01]} 4... Nf6 {[%clk 0:02:58.8]} 5. Nc3 {[%clk 0:03:00.6]}
5... Bb4 {[%clk 0:02:59.4]} 6. Bd3 {[%clk 0:02:57.1]} 6... O-O {[%clk
0:02:55.5]} 7. O-O {[%clk 0:02:56.1]} 7... d5 {[%clk 0:02:50.7]} 8. exd5 {[%clk
0:02:55.2]} 8... Bxc3 {[%clk 0:02:49.9]} 9. bxc3 {[%clk 0:02:52.1]} 9... Nxd5
{[%clk 0:02:48.5]} 10. c4 {[%clk 0:02:52.5]} 10... Nf6 {[%clk 0:02:45.7]} 11.
Ba3 {[%clk 0:02:52.7]} 11... Re8 {[%clk 0:02:41.5]} 12. Nf3 {[%clk 0:02:52.1]}
12... Nc6 {[%clk 0:02:41]} 13. Qe2 {[%clk 0:02:50.1]} 13... e5 {[%clk
0:02:26.9]} 14. Rfe1 {[%clk 0:02:44.2]} 14... Bg4 {[%clk 0:02:25.8]} 15. h3
{[%clk 0:02:39.9]} 15... Nd4 {[%clk 0:02:25.4]} 16. Qd1 {[%clk 0:02:37.8]} 16...
Nxf3+ {[%clk 0:02:19.4]} 17. gxf3 {[%clk 0:02:38.7]} 17... Bxh3 {[%clk
0:02:19.2]} 18. Kh2 {[%clk 0:02:37.8]} 18... Qc8 {[%clk 0:02:02.4]} 19. f4
{[%clk 0:02:35.4]} 19... e4 {[%clk 0:01:50.4]} 20. Bf1 {[%clk 0:02:33.4]} 20...
Ng4+ {[%clk 0:01:39.1]} 21. Kg1 {[%clk 0:02:32.2]} 21... Bxf1 {[%clk 0:01:36.8]}
22. Kxf1 {[%clk 0:02:30.7]} 22... Qf5 {[%clk 0:01:35.8]} 23. Bd6 {[%clk
0:02:25.8]} 23... Rad8 {[%clk 0:01:33.7]} 24. c5 {[%clk 0:02:25.9]} 24... Nh2+
{[%clk 0:01:26.2]} 25. Kg2 {[%clk 0:02:23.7]} 25... Nf3 {[%clk 0:01:21.2]} 26.
Re3 {[%clk 0:02:22.6]} 26... Qg4+ {[%clk 0:01:12.4]} 27. Kf1 {[%clk 0:02:20]}
27... Re6 {[%clk 0:00:55.4]} 28. Qd5 {[%clk 0:02:05.5]} 28... Qg1+ {[%clk
0:00:40.1]} 29. Ke2 {[%clk 0:02:02]} 29... Qxa1 {[%clk 0:00:39.7]} 30. Rxe4
{[%clk 0:01:59.4]} 30... Qe1+ {[%clk 0:00:18.8]} 31. Kd3 {[%clk 0:01:53.8]}
31... Qxe4+ {[%clk 0:00:19.7]} 32. Qxe4 {[%clk 0:01:51.3]} 32... Rxe4 {[%clk
0:00:19.7]} 33. Kxe4 {[%clk 0:01:52.2]} 33... Nd2+ {[%clk 0:00:19.2]} 0-1

[Event "*** Titled Tuesday Blitz"]
[Site "Chess.com"]
[Date "2021.04.27"]
[Round "10"]
[White "Gusarov91"]
[Black "UmbertoConcelli"]
[Result "1-0"]
[WhiteElo "2643"]
[BlackElo "2792"]
[TimeControl "180+1"]
[EndTime "11:51:39 PDT"]
[Termination "Gusarov91 won by resignation"]

1. e4 {[%clk 0:02:56.9]} 1... c5 {[%clk 0:02:59.5]} 2. Nf3 {[%clk 0:02:56.9]}
2... d6 {[%clk 0:02:59.9]} 3. Bb5+ {[%clk 0:02:53.3]} 3... Bd7 {[%clk
0:02:59.5]} 4. Bxd7+ {[%clk 0:02:53.5]} 4... Nxd7 {[%clk 0:03:00.4]} 5. O-O
{[%clk 0:02:53.6]} 5... Ngf6 {[%clk 0:03:00.8]} 6. Re1 {[%clk 0:02:54]} 6... e6
{[%clk 0:03:01.2]} 7. c3 {[%clk 0:02:54.3]} 7... Be7 {[%clk 0:03:01.5]} 8. d4
{[%clk 0:02:54.8]} 8... cxd4 {[%clk 0:03:01.6]} 9. Nxd4 {[%clk 0:02:54.9]} 9...
d5 {[%clk 0:03:02.5]} 10. exd5 {[%clk 0:02:54.4]} 10... Nxd5 {[%clk 0:03:01.8]}
11. Nf5 {[%clk 0:02:54.1]} 11... O-O {[%clk 0:02:52.8]} 12. Nxe7+ {[%clk
0:02:44]} 12... Nxe7 {[%clk 0:02:53.7]} 13. Bg5 {[%clk 0:02:42.7]} 13... Nf6
{[%clk 0:02:53.2]} 14. Nd2 {[%clk 0:02:35.3]} 14... Qd3 {[%clk 0:02:46.7]} 15.
Bxf6 {[%clk 0:02:23.4]} 15... gxf6 {[%clk 0:02:46.1]} 16. Qg4+ {[%clk
0:02:23.4]} 16... Ng6 {[%clk 0:02:43.3]} 17. Ne4 {[%clk 0:02:10.5]} 17... f5
{[%clk 0:02:42.3]} 18. Nf6+ {[%clk 0:02:10.6]} 18... Kg7 {[%clk 0:02:38.2]} 19.
Qg5 {[%clk 0:02:10]} 19... h6 {[%clk 0:02:29.1]} 20. Nh5+ {[%clk 0:02:10]} 20...
Kh7 {[%clk 0:02:29.2]} 21. Qf6 {[%clk 0:02:10.5]} 21... Rg8 {[%clk 0:02:23.3]}
22. Qxf7+ {[%clk 0:02:10.6]} 22... Kh8 {[%clk 0:02:23.4]} 23. Qf6+ {[%clk
0:02:09.6]} 23... Kh7 {[%clk 0:02:23.2]} 24. Rad1 {[%clk 0:02:02.5]} 24... Qb5
{[%clk 0:02:19.5]} 25. Qxe6 {[%clk 0:01:56.1]} 25... Raf8 {[%clk 0:02:15.5]} 26.
Nf6+ {[%clk 0:01:35.8]} 26... Rxf6 {[%clk 0:02:14.5]} 27. Qxf6 {[%clk
0:01:36.2]} 27... Rg7 {[%clk 0:02:13.1]} 28. c4 {[%clk 0:01:27.3]} 28... Qxc4
{[%clk 0:02:11.6]} 29. Qxf5 {[%clk 0:01:27.6]} 29... Qa4 {[%clk 0:02:05.4]} 30.
Rd6 {[%clk 0:01:13.2]} 30... Qb4 {[%clk 0:02:03.7]} 31. Ree6 {[%clk 0:01:02.1]}
31... Qxb2 {[%clk 0:02:03.5]} 32. g3 {[%clk 0:00:51.5]} 32... Qc1+ {[%clk
0:02:03.3]} 33. Kg2 {[%clk 0:00:51.5]} 33... Qg5 {[%clk 0:02:04.2]} 34. Qe4
{[%clk 0:00:45.3]} 34... b5 {[%clk 0:02:01.8]} 35. h4 {[%clk 0:00:43.9]} 35...
Qh5 {[%clk 0:02:01.5]} 36. g4 {[%clk 0:00:39.3]} 36... Qxg4+ {[%clk 0:01:58.2]}
37. Qxg4 {[%clk 0:00:36.2]} 37... Nf4+ {[%clk 0:01:58]} 38. Kf3 {[%clk
0:00:34.5]} 38... Rxg4 {[%clk 0:01:58.9]} 39. Kxg4 {[%clk 0:00:34]} 39... Nxe6
{[%clk 0:01:58.8]} 40. Rxe6 {[%clk 0:00:34.4]} 1-0

[Event "*** Titled Tuesday Blitz"]
[Site "Chess.com"]
[Date "2021.04.27"]
[Round "10"]
[White "Kostukov_Alex"]
[Black "onnoelgersma"]
[Result "0-1"]
[WhiteElo "2311"]
[BlackElo "2458"]
[TimeControl "180+1"]
[EndTime "11:51:39 PDT"]
[Termination "onnoelgersma won by resignation"]

1. g3 {[%clk 0:03:00.9]} 1... d5 {[%clk 0:02:59.6]} 2. Bg2 {[%clk 0:03:00.3]}
2... Nf6 {[%clk 0:02:59.7]} 3. d3 {[%clk 0:03:00.4]} 3... e5 {[%clk 0:02:59]} 4.
e4 {[%clk 0:02:59.5]} 4... dxe4 {[%clk 0:02:58.4]} 5. dxe4 {[%clk 0:03:00.4]}
5... Qxd1+ {[%clk 0:02:58.4]} 6. Kxd1 {[%clk 0:03:01.3]} 6... c6 {[%clk
0:02:57.6]} 7. f3 {[%clk 0:03:01.7]} 7... Be7 {[%clk 0:02:56.3]} 8. Be3 {[%clk
0:03:01.6]} 8... O-O {[%clk 0:02:56.4]} 9. Nd2 {[%clk 0:03:01.7]} 9... Be6
{[%clk 0:02:56.8]} 10. Bh3 {[%clk 0:03:01.5]} 10... Bxh3 {[%clk 0:02:53.7]} 11.
Nxh3 {[%clk 0:03:02.4]} 11... Nbd7 {[%clk 0:02:53.6]} 12. Nf2 {[%clk 0:03:01.1]}
12... b5 {[%clk 0:02:52.8]} 13. Ke2 {[%clk 0:02:57.7]} 13... Rfd8 {[%clk
0:02:49.9]} 14. a4 {[%clk 0:02:46.2]} 14... a6 {[%clk 0:02:46.7]} 15. Nd3 {[%clk
0:02:40.6]} 15... Ne8 {[%clk 0:02:28.9]} 16. Ra2 {[%clk 0:02:28.6]} 16... c5
{[%clk 0:02:09.4]} 17. axb5 {[%clk 0:02:19.2]} 17... axb5 {[%clk 0:02:08.5]} 18.
Rha1 {[%clk 0:02:19.8]} 18... Rxa2 {[%clk 0:01:51.9]} 19. Rxa2 {[%clk
0:02:20.7]} 19... c4 {[%clk 0:01:52.4]} 20. Nf2 {[%clk 0:02:14.4]} 20... Nc7
{[%clk 0:01:51.7]} 21. Ra7 {[%clk 0:02:06.5]} 21... Ne6 {[%clk 0:01:50.2]} 22.
c3 {[%clk 0:02:06.4]} 22... Bc5 {[%clk 0:01:23.8]} 23. b3 {[%clk 0:01:50.9]}
23... Bxa7 {[%clk 0:01:15.6]} 24. Bxa7 {[%clk 0:01:50.4]} 24... cxb3 {[%clk
0:01:15.7]} 25. Nxb3 {[%clk 0:01:50.2]} 25... Ra8 {[%clk 0:01:14.7]} 26. Be3
{[%clk 0:01:37.7]} 26... Ra2+ {[%clk 0:01:13.6]} 27. Kd3 {[%clk 0:01:33]} 27...
Rb2 {[%clk 0:01:12.5]} 28. Nd1 {[%clk 0:01:09.8]} 28... Rxb3 {[%clk 0:01:00]}
29. Kc2 {[%clk 0:01:09.5]} 29... Ra3 {[%clk 0:00:58.9]} 0-1

[Event "*** Titled Tuesday Blitz"]
[Site "Chess.com"]
[Date "2021.04.27"]
[Round "10"]
[White "djano"]
[Black "levallem"]
[Result "1-0"]
[WhiteElo "2466"]
[BlackElo "2270"]
[TimeControl "180+1"]
[EndTime "11:51:46 PDT"]
[Termination "djano won by checkmate"]

1. d4 {[%clk 0:03:00.9]} 1... Nf6 {[%clk 0:02:56]} 2. Nf3 {[%clk 0:02:59.7]}
2... g6 {[%clk 0:02:55.3]} 3. Bf4 {[%clk 0:02:58.7]} 3... Bg7 {[%clk 0:02:54.6]}
4. Nc3 {[%clk 0:02:58]} 4... d6 {[%clk 0:02:54.2]} 5. e4 {[%clk 0:02:57.4]} 5...
Nbd7 {[%clk 0:02:53.3]} 6. Qd2 {[%clk 0:02:56.1]} 6... O-O {[%clk 0:02:53.4]} 7.
O-O-O {[%clk 0:02:55.4]} 7... Re8 {[%clk 0:02:53.5]} 8. Bh6 {[%clk 0:02:51.4]}
8... e5 {[%clk 0:02:52.4]} 9. Bxg7 {[%clk 0:02:39.9]} 9... Kxg7 {[%clk
0:02:52.2]} 10. dxe5 {[%clk 0:02:33.4]} 10... Nxe5 {[%clk 0:02:53.1]} 11. Nd4
{[%clk 0:02:28.2]} 11... Ned7 {[%clk 0:02:45.7]} 12. Bd3 {[%clk 0:02:25.2]}
12... Nc5 {[%clk 0:02:45]} 13. f3 {[%clk 0:02:23.3]} 13... Be6 {[%clk
0:02:42.3]} 14. g4 {[%clk 0:02:20.4]} 14... Nxd3+ {[%clk 0:02:36.2]} 15. cxd3
{[%clk 0:02:13.5]} 15... c5 {[%clk 0:02:32.7]} 16. Nf5+ {[%clk 0:02:13.3]} 16...
gxf5 {[%clk 0:01:32.9]} 17. gxf5 {[%clk 0:02:14.2]} 17... Bd7 {[%clk 0:01:32]}
18. Rhg1+ {[%clk 0:02:03.3]} 18... Kh8 {[%clk 0:01:21.1]} 19. Rg5 {[%clk
0:02:03.3]} 19... Rg8 {[%clk 0:01:18.1]} 20. Rdg1 {[%clk 0:02:02.9]} 20... Rxg5
{[%clk 0:01:17.3]} 21. Qxg5 {[%clk 0:02:02.9]} 21... Nh5 {[%clk 0:01:05.3]} 22.
Qxh5 {[%clk 0:02:01.1]} 22... Qf6 {[%clk 0:01:04.1]} 23. Nd5 {[%clk 0:01:51]}
23... Qd4 {[%clk 0:01:02.6]} 24. Qg5 {[%clk 0:01:47.4]} 24... Bb5 {[%clk
0:00:07]} 25. Nf6 {[%clk 0:01:39.5]} 25... Qxf6 {[%clk 0:00:06.5]} 26. Qxf6#
{[%clk 0:01:39.6]} 1-0

[Event "*** Titled Tuesday Blitz"]
[Site "Chess.com"]
[Date "2021.04.27"]
[Round "10"]
[White "azikom"]
[Black "TimofeevAr"]
[Result "1/2-1/2"]
[WhiteElo "2658"]
[BlackElo "2813"]
[TimeControl "180+1"]
[EndTime "11:51:51 PDT"]
[Termination "Game drawn by repetition"]

1. d4 {[%clk 0:03:00.4]} 1... Nf6 {[%clk 0:02:59.1]} 2. Nf3 {[%clk 0:03:00.1]}
2... b6 {[%clk 0:02:58.7]} 3. g3 {[%clk 0:02:59.3]} 3... Bb7 {[%clk 0:02:58.8]}
4. Bg2 {[%clk 0:03:00.2]} 4... g6 {[%clk 0:02:59.3]} 5. O-O {[%clk 0:03:00.3]}
5... Bg7 {[%clk 0:02:59.8]} 6. c4 {[%clk 0:02:56.2]} 6... O-O {[%clk 0:02:59.8]}
7. Nc3 {[%clk 0:02:55.9]} 7... e6 {[%clk 0:02:54.2]} 8. b3 {[%clk 0:02:54.5]}
8... Ne4 {[%clk 0:02:52.5]} 9. Bb2 {[%clk 0:02:54.4]} 9... d6 {[%clk 0:02:51]}
10. Qc2 {[%clk 0:02:50.2]} 10... Nxc3 {[%clk 0:02:50.5]} 11. Bxc3 {[%clk
0:02:50.3]} 11... Nd7 {[%clk 0:02:51.1]} 12. Rfd1 {[%clk 0:02:50.9]} 12... Qe7
{[%clk 0:02:50.6]} 13. Rac1 {[%clk 0:02:47.3]} 13... a5 {[%clk 0:02:49.5]} 14.
Bf1 {[%clk 0:02:40.1]} 14... Bxf3 {[%clk 0:02:47.9]} 15. exf3 {[%clk 0:02:39.8]}
15... e5 {[%clk 0:02:48.4]} 16. dxe5 {[%clk 0:02:38.9]} 16... Bxe5 {[%clk
0:02:45.9]} 17. Bd2 {[%clk 0:02:27.8]} 17... Qf6 {[%clk 0:02:40.9]} 18. f4
{[%clk 0:02:22.8]} 18... Bd4 {[%clk 0:02:41]} 19. Bg2 {[%clk 0:02:21.7]} 19...
Rae8 {[%clk 0:02:38.6]} 20. Re1 {[%clk 0:02:17.2]} 20... Nc5 {[%clk 0:02:35.8]}
21. Rcd1 {[%clk 0:02:15.6]} 21... Re6 {[%clk 0:02:32.5]} 22. Rxe6 {[%clk
0:02:12.4]} 22... Nxe6 {[%clk 0:02:31.5]} 23. Bc1 {[%clk 0:02:07.6]} 23... Re8
{[%clk 0:02:29.2]} 24. Re1 {[%clk 0:02:03]} 24... Re7 {[%clk 0:02:28.8]} 25. Re4
{[%clk 0:01:56.4]} 25... Nc5 {[%clk 0:02:26.5]} 26. Rxe7 {[%clk 0:01:52.8]}
26... Qxe7 {[%clk 0:02:26.6]} 27. Kf1 {[%clk 0:01:51.5]} 27... Kg7 {[%clk
0:02:12.5]} 28. h4 {[%clk 0:01:50.3]} 28... Qe6 {[%clk 0:02:03.9]} 29. Bd5
{[%clk 0:01:44.7]} 29... Qf5 {[%clk 0:02:02.5]} 30. Qxf5 {[%clk 0:01:42.2]}
30... gxf5 {[%clk 0:02:02.5]} 31. Ke2 {[%clk 0:01:39.3]} 31... h5 {[%clk
0:01:59]} 32. Be3 {[%clk 0:01:25.3]} 32... Bxe3 {[%clk 0:01:58]} 33. Kxe3 {[%clk
0:01:23.7]} 33... Nd7 {[%clk 0:01:56.8]} 34. Bf3 {[%clk 0:01:22.6]} 34... Nf6
{[%clk 0:01:56.9]} 35. Kd4 {[%clk 0:01:22.3]} 35... Kf8 {[%clk 0:01:56.7]} 36.
Be2 {[%clk 0:01:07.7]} 36... Ke7 {[%clk 0:01:56]} 37. f3 {[%clk 0:01:03.6]}
37... c5+ {[%clk 0:01:54.5]} 38. Ke3 {[%clk 0:01:02.7]} 38... d5 {[%clk
0:01:54.3]} 39. cxd5 {[%clk 0:01:02.7]} 39... Nxd5+ {[%clk 0:01:54.6]} 40. Kd2
{[%clk 0:01:03]} 40... Kd6 {[%clk 0:01:50.2]} 41. a4 {[%clk 0:00:59.9]} 41...
Nf6 {[%clk 0:01:46.1]} 42. Bc4 {[%clk 0:00:58.9]} 42... Ke7 {[%clk 0:01:46.1]}
43. Bd3 {[%clk 0:00:56.7]} 43... Ke6 {[%clk 0:01:46.3]} 44. Bc4+ {[%clk
0:00:56.1]} 44... Ke7 {[%clk 0:01:46.6]} 45. Bd3 {[%clk 0:00:56.1]} 45... Ke6
{[%clk 0:01:46.9]} 46. Bc4+ {[%clk 0:00:56]} 46... Ke7 {[%clk 0:01:47.1]}
1/2-1/2

[Event "*** Titled Tuesday Blitz"]
[Site "Chess.com"]
[Date "2021.04.27"]
[Round "10"]
[White "Lenyas66"]
[Black "northridgehawk"]
[Result "1-0"]
[WhiteElo "2493"]
[BlackElo "2355"]
[TimeControl "180+1"]
[EndTime "11:51:55 PDT"]
[Termination "Lenyas66 won by resignation"]

1. e4 {[%clk 0:03:00.9]} 1... e5 {[%clk 0:02:58.3]} 2. Nf3 {[%clk 0:03:00.9]}
2... Nc6 {[%clk 0:02:59.2]} 3. Bb5 {[%clk 0:03:00.5]} 3... a6 {[%clk 0:02:59.1]}
4. Ba4 {[%clk 0:03:00.5]} 4... Nf6 {[%clk 0:02:58.6]} 5. O-O {[%clk 0:03:00.5]}
5... b5 {[%clk 0:02:58.9]} 6. Bb3 {[%clk 0:03:00.2]} 6... Bc5 {[%clk 0:02:59.8]}
7. a4 {[%clk 0:02:59.6]} 7... Rb8 {[%clk 0:02:59.3]} 8. axb5 {[%clk 0:02:59.4]}
8... axb5 {[%clk 0:03:00.2]} 9. c3 {[%clk 0:02:59.6]} 9... d6 {[%clk 0:03:00.6]}
10. d4 {[%clk 0:02:59.8]} 10... Bb6 {[%clk 0:03:00.2]} 11. Qd3 {[%clk
0:03:00.1]} 11... O-O {[%clk 0:02:55.6]} 12. Be3 {[%clk 0:03:00.1]} 12... Re8
{[%clk 0:02:52.2]} 13. Nbd2 {[%clk 0:02:59.8]} 13... Bg4 {[%clk 0:02:49.7]} 14.
Ng5 {[%clk 0:02:59.2]} 14... Bh5 {[%clk 0:02:48.2]} 15. f4 {[%clk 0:01:56.7]}
15... exd4 {[%clk 0:02:37.5]} 16. cxd4 {[%clk 0:01:56.1]} 16... Ng4 {[%clk
0:02:35.5]} 17. e5 {[%clk 0:01:01.1]} 17... Bg6 {[%clk 0:02:09.5]} 18. Bxf7+
{[%clk 0:00:58.7]} 18... Bxf7 {[%clk 0:01:58.9]} 19. Qxh7+ {[%clk 0:00:57.9]}
19... Kf8 {[%clk 0:01:59.4]} 20. Nxf7 {[%clk 0:00:52.3]} 20... Qe7 {[%clk
0:01:36.3]} 21. Nh8 {[%clk 0:00:39.8]} 21... Qe6 {[%clk 0:01:27.7]} 22. Ng6+
{[%clk 0:00:31]} 22... Kf7 {[%clk 0:01:27.2]} 23. f5 {[%clk 0:00:28.8]} 23...
Qd5 {[%clk 0:01:12.5]} 24. e6+ {[%clk 0:00:27.4]} 24... Rxe6 {[%clk 0:01:07.2]}
25. fxe6+ {[%clk 0:00:27.2]} 25... Kxe6 {[%clk 0:01:08.1]} 26. Nf4+ {[%clk
0:00:26.6]} 1-0

[Event "*** Titled Tuesday Blitz"]
[Site "Chess.com"]
[Date "2021.04.27"]
[Round "10"]
[White "LamaChampetre"]
[Black "McCarthyStone"]
[Result "0-1"]
[WhiteElo "2211"]
[BlackElo "2350"]
[TimeControl "180+1"]
[EndTime "11:52:03 PDT"]
[Termination "McCarthyStone won on time"]

1. d4 {[%clk 0:03:00.9]} 1... d6 {[%clk 0:02:58.3]} 2. Nf3 {[%clk 0:02:58.6]}
2... Nd7 {[%clk 0:02:51.1]} 3. e4 {[%clk 0:02:53]} 3... g6 {[%clk 0:02:50.8]} 4.
Bc4 {[%clk 0:02:52.1]} 4... Bg7 {[%clk 0:02:50.5]} 5. O-O {[%clk 0:02:52.2]}
5... e6 {[%clk 0:02:51]} 6. Be3 {[%clk 0:02:52]} 6... Ne7 {[%clk 0:02:51.2]} 7.
Nc3 {[%clk 0:02:51.6]} 7... a6 {[%clk 0:02:50.2]} 8. Qd2 {[%clk 0:02:51.4]} 8...
h6 {[%clk 0:02:46.5]} 9. a4 {[%clk 0:02:51.2]} 9... b6 {[%clk 0:02:47]} 10. Rfe1
{[%clk 0:02:45.3]} 10... Bb7 {[%clk 0:02:47.4]} 11. Rad1 {[%clk 0:02:44.6]}
11... g5 {[%clk 0:02:47.8]} 12. h3 {[%clk 0:02:32.6]} 12... Ng6 {[%clk
0:02:48.1]} 13. Nh2 {[%clk 0:02:11.3]} 13... Nf6 {[%clk 0:02:43.5]} 14. Bd3
{[%clk 0:02:07.6]} 14... Nh5 {[%clk 0:02:42]} 15. e5 {[%clk 0:02:00.5]} 15...
Nhf4 {[%clk 0:02:37.6]} 16. Be4 {[%clk 0:01:47.3]} 16... Bxe4 {[%clk 0:02:35.1]}
17. Nxe4 {[%clk 0:01:46.8]} 17... dxe5 {[%clk 0:02:35.7]} 18. Bxf4 {[%clk
0:01:24.7]} 18... exf4 {[%clk 0:02:20.1]} 19. c4 {[%clk 0:01:09]} 19... O-O
{[%clk 0:02:17.5]} 20. d5 {[%clk 0:00:55.8]} 20... exd5 {[%clk 0:02:15]} 21.
cxd5 {[%clk 0:00:29.8]} 21... Re8 {[%clk 0:02:15.1]} 22. d6 {[%clk 0:00:18.5]}
22... cxd6 {[%clk 0:02:14.5]} 23. Nxd6 {[%clk 0:00:18.7]} 23... Rxe1+ {[%clk
0:02:13.6]} 24. Rxe1 {[%clk 0:00:19.6]} 24... Qd7 {[%clk 0:02:07.9]} 25. Rd1
{[%clk 0:00:15.2]} 25... Rd8 {[%clk 0:02:07.8]} 26. Qc2 {[%clk 0:00:14.8]} 26...
Be5 {[%clk 0:02:03.8]} 27. Nf3 {[%clk 0:00:08.9]} 27... Bxd6 {[%clk 0:02:03.1]}
28. Qc4 {[%clk 0:00:03.7]} 28... Qe6 {[%clk 0:01:51.7]} 29. Qxa6 {[%clk
0:00:03]} 29... Be7 {[%clk 0:01:52.2]} 30. Re1 {[%clk 0:00:02.3]} 30... Qd6
{[%clk 0:01:47.2]} 31. a5 {[%clk 0:00:02.3]} 31... bxa5 {[%clk 0:01:46.5]} 32.
Qxa5 {[%clk 0:00:02.2]} 32... Kg7 {[%clk 0:01:45.3]} 33. Qa2 {[%clk 0:00:01.2]}
33... Bf6 {[%clk 0:01:44.8]} 0-1